Cogmind - Beta 17.1 @@@ ROGUE MODE // 2026.09.01 @ 22:02:06 Player: theq629 Result: Self-destructed Performance ------------- Evolutions (1) 500 Regions Visited (2) 400 Robots Destroyed (22) 110 Value Destroyed (797) 797 Prototype IDs (0) 0 Alien Tech Used (0) 0 Bonus (0) 0 TOTAL SCORE: 1807 Bonus ------- None Cogmind --------- Core Integrity 18/400 Matter 300/300 Energy 265/265 System Corruption 0% Temperature Cool (6) Movement Core (400) Ox7 Location -9/Materials Parts ------- > --- POWER (2) -------- Reinforced Ion Engine > --- PROPULSION (3) --- (None) > --- UTILITY (2) ------ Medium Storage Unit Seismic Detector > --- WEAPON (2) ------- Medium Laser > --- INVENTORY (10) --- Ion Engine Ion Engine Light Ion Engine Aluminum Leg Aluminum Leg Aluminum Leg Heat Sink Heat Sink Small Laser Small Laser Peak State ------------ > --- POWER ------------ Improved Ion Engine Reinforced Ion Engine > --- PROPULSION ------- Aluminum Leg Aluminum Leg Aluminum Leg > --- UTILITY ---------- Medium Storage Unit Seismic Detector > --- WEAPON ----------- Small Laser Beam Rifle > --- INVENTORY -------- Ion Engine Ion Engine Light Ion Engine Aluminum Leg Aluminum Leg Aluminum Leg Wheel Wheel Heat Sink Small Laser [Rating: 13] Favorites ----------- Power Ion Engine Engine Ion Engine Propulsion Aluminum Leg Leg Aluminum Leg Utility Seismic Detector Device Seismic Detector Storage Medium Storage Unit Weapon Small Laser Energy Gun Small Laser Ballistic Gun Assault Rifle Build | -11 -10 -9 ------- Run | Yrd Mat Mat Slots Evolved 2 | . . 2 Power 1 | . . 1 Propulsion 1 | . . 1 Utility . | . . . Weapon . | . . . Parts Attached 26 | 8 9 9 Power 7 | 2 3 2 Engine 7 | 2 3 2 Core . | . . . Reactor . | . . . Propulsion 6 | 2 1 3 Treads . | . . . Leg 6 | 2 1 3 Wheel . | . . . Hover . | . . . Flight . | . . . Utility 5 | 2 2 1 Device 3 | 1 1 1 Storage 2 | 1 1 . Processor . | . . . Hackware . | . . . Protection . | . . . Artifact . | . . . Weapon 8 | 2 3 3 Energy Gun 6 | . 3 3 Energy Cannon . | . . . Ballistic Gun 2 | 2 . . Ballistic Cannon . | . . . Launcher . | . . . Special Weapon . | . . . Impact Weapon . | . . . Slashing Weapon . | . . . Piercing Weapon . | . . . Special Melee Weapon . | . . . Unidentified Prototypes . | . . . Parts Lost 9 | . 4 5 Power 1 | . . 1 Propulsion 3 | . . 3 Utility 1 | . 1 . Weapon 4 | . 3 1 Highest Loss Streak 5 | . 2 5 To Critical Strikes . | . . . Average Backups 7 | 2 7 9 Power 2 | . 1 2 Propulsion 4 | 1 4 4 Utility . | . . 1 Weapon . | . . 1 Tool/Special . | . . . Unused Backups 6 | . 1 5 Power . | . . . Propulsion 5 | . 1 4 Utility 1 | . . 1 Weapon . | . . . Tool/Special . | . . . Average Slot Usage (%) 94 | . 95 94 Engine 17 | . 14 21 Leg 28 | . 28 29 Device 12 | . 13 11 Storage 12 | . 14 11 Energy Gun 15 | . 9 21 Ballistic Gun 7 | . 14 . Peak Build Rating 13 | 7 8 13 Average Rating 8 | 5 6 10 On Entrance 5 | . 7 8 Avg Prop Armor Cover (%) . | . . . Naked Turns . | . . . Heaviest Build 32 | 14 20 32 Greatest Support 30 | 20 20 30 Greatest Overweight (x) 7 | . . 7 Average Overweight (x) . | . . . Largest Inventory Capacity 10 | 8 10 10 Average Capacity 9 | 6 9 10 Most Carried 10 | 5 10 10 Average Carried 7 | 2 7 9 Final Capacity 10 | 8 10 10 Final Carried 10 | 5 10 10 Class Distribution -------------------- 53% | Mutant 46% | Scavenger-Mutant Dominant Class ---------------- Mutant | -10/Materials Scavenger-Mutant | -9/Materials Resources | -11 -10 -9 ----------- Run | Yrd Mat Mat Matter Collected 682 | 267 166 249 Remotely . | . . . Salvage Created 969 | 16 446 507 Parts 46 | 4 21 21 Haulers Intercepted . | . . . Recyclers Shooed . | . . . Parts Field Recycled . | . . . Retrieved Matter . | . . . Parts Self-Destructed . | . . . Prevented . | . . . Parts Restored . | . . . Kills | -11 -10 -9 ------- Run | Yrd Mat Mat Combat Hostiles Destroyed 21 | . 10 11 Guns 20 | . 10 10 Classes Destroyed 4 | 1 1 2 Tunneler 1 | 1 . . Grunt 18 | . 10 8 Brawler 1 | . . 1 Sentry 2 | . . 2 Best Kill Streak 4 | 1 4 3 Combat Bots Only 4 | . 4 3 Max Kills in Single Turn 2 | 1 2 1 Gunslinging 1 | . 1 . Exploded . | . . . Melee . | . . . Uniques/NPCs Destroyed . | . . . Combat | -11 -10 -9 -------- Run | Yrd Mat Mat Hostile Shots Fired 154 | . 79 75 Missed 29 | . 18 11 Hits 125 | . 61 64 Projectile 125 | . 61 64 Critical Strikes 2 | . 1 1 Damage Taken 1762 | . 790 972 Core 543 | . 161 382 Absorbed by Shields . | . . . Core Remaining (%) 67 | 100 35 . Volleys Fired 80 | 1 42 37 Largest 2 | 2 2 2 Hottest 96 | 40 60 96 Shots Fired 125 | 2 64 59 Gun 125 | 2 64 59 Cannon . | . . . Launcher . | . . . Special . | . . . Kinetic 41 | 2 39 . Thermal 72 | . 13 59 Explosive . | . . . Electromagnetic 12 | . 12 . Robot Hit Streak 9 | 2 9 6 Robot Miss Streak 5 | . 5 3 Penetration Max . | . . . Secondary Targets 4 | . 3 1 Max Gunslinging Chain 1 | . 1 1 Shots Hit Robots 89 | 2 46 41 Core Hits 50 | 1 26 23 Critical Kills 1 | 1 . . Critical Parts Destroyed . | . . . Critical Strikes 3 | 1 . 2 Burn 2 | . . 2 Destroy 1 | 1 . . Melee Attacks . | . . . Impact . | . . . Slashing . | . . . Piercing . | . . . Sneak Attacks . | . . . Combat Hostiles . | . . . Follow-up Attacks . | . . . Damage Inflicted 1099 | 23 543 533 Guns 1086 | 23 541 522 Cannons . | . . . Explosions . | . . . Melee . | . . . Ramming 13 | . 2 11 Kinetic 312 | 23 289 . Thermal 643 | . 121 522 Explosive . | . . . Electromagnetic 131 | . 131 . Impact . | . . . Slashing . | . . . Piercing . | . . . Highest Corruption . | . . . Average Corruption . | . . . Corruption Purged . | . . . Corruption Blocked . | . . . Overload Shots . | . . . Overflow Damage . | . . . Projectiles . | . . . Explosions . | . . . Melee . | . . . Knockbacks . | . . . Impact . | . . . Kinetic . | . . . Secondary . | . . . Self-Inflicted Damage . | . . . Shots . | . . . Rammed 1 | . . 1 Targets Rammed 14 | . 1 13 Kicked 13 | . 1 12 Crushed . | . . . Highest Temperature 598 | . 71 598 Average Temperature 164 | . 26 232 Received Heat Transfer 840 | . 435 405 Effects 22 | . . 22 Shutdowns 10 | . . 10 Energy Bleed 1 | . . 1 Interference 2 | . . 2 Matter Decay 3 | . . 3 Short Circuit 2 | . . 2 Damage (minor) 1 | . . 1 Damage (core) 3 | . . 3 Siege Activations . | . . . Martial Activations . | . . . Shielding Activations . | . . . Robots Disrupted . | . . . Combat Hostiles . | . . . Robots Corrupted . | . . . Combat Hostiles . | . . . Parts Fried . | . . . Impact Corruptions . | . . . Robots Melted 1 | . . 1 Combat Hostiles 1 | . . 1 Parts Melted 1 | . . 1 Heat Transferred 1797 | . 275 1522 Parts Sabotaged . | . . . Parts Stolen . | . . . Parts Stripped . | . . . Power Chain Reactions . | . . . Alert | -11 -10 -9 ------- Run | Yrd Mat Mat Maximum Alert Level . | . . . Low Security (%) 100 | 100 100 100 Level 1 . | . . . Level 2 . | . . . Level 3 . | . . . Level 4 . | . . . Level 5 . | . . . High Security . | . . . Max Security . | . . . Peak Influence 96 | 5 90 96 Initial 21 | . . 21 Average 35 | . 35 44 Influence Increases 576 | 5 280 291 Destroy 0b10 Robot/C 420 | . 200 220 Destroy 0b10 Robot/NC 5 | 5 . . Destroy Leader 90 | . 50 40 Destroy Structure 1 | . . 1 Lose Combat Pursuer 60 | . 30 30 Influence Decreases 544 | 5 228 311 Entered New Map 31 | . . 31 Time Decay 433 | 5 198 230 Lost Part 80 | . 30 50 Squads Dispatched 5 | . 4 1 Investigation 1 | . 1 . Extermination . | . . . Reinforcement 4 | . 3 1 Assault . | . . . Garrison . | . . . Intercept . | . . . Searches Triggered . | . . . Construction Impeded . | . . . Haulers Reinforced . | . . . Active Scanning Responses . | . . . Cargo Convoy Interrupts . | . . . Stealth | -11 -10 -9 --------- Run | Yrd Mat Mat Distress Signals 1 | . . 1 Communications Jammed . | . . . Distress Signals . | . . . Times Spotted 32 | . 15 17 Peak Tracking Total 5 | . 4 5 Tactical Retreats 3 | . 2 1 Traps | -11 -10 -9 ------- Run | Yrd Mat Mat Traps Triggered 2 | . 2 . Indirectly . | . . . Trap Hack Attempts . | . . . Triggered . | . . . Disarmed . | . . . Reprogrammed . | . . . Reused . | . . . Traps Extracted . | . . . Installed . | . . . Triggered . | . . . Machines | -11 -10 -9 ---------- Run | Yrd Mat Mat Machines Disabled . | . . . Max in Single Turn . | . . . Machines Repaired . | . . . Machines Dismantled . | . . . Machines Sabotaged . | . . . Overloaded Fab Kills . | . . . Hacking | -11 -10 -9 --------- Run | Yrd Mat Mat Machines Accessed . | . . . Terminals . | . . . Fabricators . | . . . Repair Stations . | . . . Recycling Units . | . . . Scanalyzers . | . . . Garrison Access . | . . . Total Hacks . | . . . Successful . | . . . Failed . | . . . Catastrophic . | . . . Database Lockouts . | . . . Manual . | . . . Terminals . | . . . Fabricators . | . . . Repair Stations . | . . . Recycling Units . | . . . Scanalyzers . | . . . Garrison Access . | . . . Terminal Hacks . | . . . Fabricator Hacks . | . . . Repair Station Hacks . | . . . Recycling Unit Hacks . | . . . Scanalyzer . | . . . Garrison Access Hacks . | . . . Unauthorized Hacks . | . . . Terminals . | . . . Fabricators . | . . . Repair Stations . | . . . Recycling Units . | . . . Scanalyzers . | . . . Garrison Access . | . . . Data Cores Recovered . | . . . Used . | . . . Hacking Detections . | . . . Full Trace Events . | . . . Feedback Events . | . . . Feedback Blocked . | . . . Robot Schematics Acquired . | . . . Robots Built . | . . . Authchips . | . . . Time . | . . . Total Robot Build Rating . | . . . Part Schematics Acquired . | . . . Parts Built . | . . . Authchips . | . . . Time . | . . . Total Part Build Rating . | . . . Part Studies Acquired . | . . . Parts Repaired . | . . . Time . | . . . Parts Recycled . | . . . Recycled Matter . | . . . Retrieved Matter . | . . . Retrieved Components . | . . . Parts Scanalyzed . | . . . Part Schematics Acquired . | . . . Parts Damaged . | . . . Bothacking | -11 -10 -9 ------------ Run | Yrd Mat Mat Used RIF Installer . | . . . Robots Hacked . | . . . Non-combat . | . . . Combat . | . . . Robot Hacks Applied . | . . . Relay Couplers Released . | . . . Fabnet Peak Effective % . | . . . Robots Rewired . | . . . Allies Hacked . | . . . Hacks Repelled . | . . . Allies | -11 -10 -9 -------- Run | Yrd Mat Mat Total Allies . | . . . Largest Group . | . . . Highest-Rated Group . | . . . Highest-Rated Ally . | . . . Total Orders . | . . . Ally Attacks . | . . . Total Damage . | . . . Kills . | . . . Allies Corrupted . | . . . Allies Melted . | . . . Intel | -11 -10 -9 ------- Run | Yrd Mat Mat Active Infowar (turns) 824 | 67 412 345 Seismic 824 | 67 412 345 Robot Analysis Total . | . . . Derelict Logs Recovered . | . . . Drone Launches . | . . . Drone Recoveries . | . . . Exploration | -11 -10 -9 ------------- Run | Yrd Mat Mat Turns Passed 1100 | 113 503 484 Spaces Moved 509 | 79 243 187 Core 9 | 5 . 4 Treads . | . . . Legs 500 | 74 243 183 Wheels . | . . . Hover . | . . . Flight . | . . . Fastest Speed 50 | 50 120 120 Average Speed 126 | 115 120 138 Slowest Speed 400 | 120 120 400 Overloaded Moves . | . . . Propulsion Burnouts . | . . . Robots Hopped . | . . . Potential Cave-ins . | . . . Cave-ins Triggered . | . . . Exploration Rate (%) 17 | 4 33 15 Regions Visited 2 Branch Regions . Pre-discovered Areas . | . . . Known Exits Taken . | . . . Unknown Exits Taken 2 | 1 1 . Scrap Searched . | . . . Spaces Dug . | . . . Terrain Destroyed . | . . . Melee . | . . . Projectile . | . . . AOE . | . . . Terrain Rammed . | . . . Walls Destroyed . | . . . Machines Disabled . | . . . Actions | -11 -10 -9 --------- Run | Yrd Mat Mat Total 815 | 95 392 328 Wait 165 | 4 90 71 Move 507 | 78 242 187 Hop . | . . . Pick Up 11 | 4 5 2 Fast Attach 9 | 7 2 . Attach 4 | . 2 2 Detach . | . . . Swap 15 | 1 5 9 Drop 10 | . 3 7 Fire 80 | 1 42 37 Melee . | . . . Ram 1 | . . 1 Kick 13 | . 1 12 Crush . | . . . Escape Stasis . | . . . Rewire . | . . . Trap . | . . . Miscellaneous . | . . . Route ------- -11/Scrapyard -10/Materials -9/Materials History --------- Turn | Location | Event 5 | -11/Scrapyard | Discovered new exit (range 16) 114 | -11/Scrapyard | Entered Materials 281 | -10/Materials | Core integrity fell below 50% 335 | -10/Materials | Build established: Mutant 507 | -10/Materials | Discovered new exit (range 5) 617 | -10/Materials | Entered another Materials area 617 | -9/Materials | Evolved 2 slots: Power x1, Propulsion x1 847 | -9/Materials | Build established: Scavenger-Mutant 1034 | -9/Materials | Core integrity fell below 50% 1062 | -9/Materials | Core integrity fell below 20% 1101 | -9/Materials | Self-destructed Last Messages --------------- 01051_ K-01 Serf collects debris. 01052_ Kicked G-34 Mercenary. 01053_ Broken Aluminum Leg destroyed. 01054_ K-01 Serf cleans the Atomic Centrifuge. 01054_ R-06 Scavenger collects Aluminum Leg. 01056_ Kicked G-34 Mercenary. 01059_ K-01 Serf cleans the Atomic Centrifuge. 01060_ K-01 Serf collects debris. 01062_ Kicked G-34 Mercenary out of the way. 01063_ Acquired 40 matter. 01063_ Imp. Ion Engine destroyed. 01065_ Broken Beam Rifle destroyed. 01065_ Kicked G-34 Mercenary. 01073_ K-01 Serf destroyed. 01073_ Kicked G-34 Mercenary. 01077_ R-06 Scavenger collects Med. Matter Pod. 01078_ Kicked G-34 Mercenary. 01081_ Aluminum Leg destroyed. 01081_ Slammed into G-34 Mercenary. 01089_ R-06 Scavenger collects Wheel. Map ----- +----------------------------------------------------+ | ???????????????????????????????????????????????? | | ???????????????????????????????????????????????? | | ???????????????????????????????????????????????? | | ???????????????????????????????????????????????? | | ???????????????????????????????????????????????? | | ???????????????????????????????????????????????? | | ???????????????????????????????????????????????? | | ???????????????????????????????????????????????? | | ???????????????????????????????????????????????? | | ???????????????????????????????????????????????? | | ??????????????????????? ?????????????????????? | | ??????????????????????? #????????????????????? | | ??????????????????????? #????????????????????? | | ??????????????????????? +????????????????????? | | ??????????????????????# #????????????????????? | | ??????????????????????# #????????????????????? | | ??????????????????????# #????????????????????? | | ??????????????????????# #????????????????????? | | ??????????????????????# #???#######??????????? | | ??????????????????????# #?? #??????????? | | ?????????????????????## ##? #??????????? | | ?????????????????????# k # #??????????? | | ?????????????????????# # ?????????????? | | ?????????????????????# r ????????????????? | | ?????????????????????# #???????????????????? | | ?????????????????????# @ #???????????????????? | | ???????????????######## ##???????????????????? | | ???????????????# #% #????????????????????? | | ???????????????# =%+%% #????????????????????? | | ???????????????#""" %#%%g#????????????????????? | | ???????????????#""" #% #???? ???????????????? | | ???????????????#""" # #??"" ???????????????? | | ???????????????# # # """ ??????????????? | | ?????????????##########r + """ ??????????????? | | ?????????????# # # #????????????? | | ?????????????#""" # ###????##????????????? | | ?????????????#""" # #????????????????????? | | ?????????????#""" # #????????????????????? | | ?????????????# + +????????????????????? | | ?????????????#""" ""# #????????????????????? | | ?????????????#""" Y"# #????????????????????? | | ?????????????#""" ""# #????????????????????? | | ?????????????# # #????????????????????? | | ?????????????########## #????????????????????? | | ??????????????????????# #????????????????????? | | ??????????????????????# #????????????????????? | | ??????????????????????# #????????????????????? | | ??????????????????????# #????????????????????? | | ??????????????????????# #????????????????????? | | ????????????????????### #????????????????????? | +----------------------------------------------------+ Best States ------------- Heat Dissipation 38 Energy Generation 19 Energy Capacity 430 Matter Stores 300 Matter Capacity 300 Sight Range 16 Terrain Scan Density 10 Evasion (%) 55 Item Schematics ----------------- None Robot Schematics ------------------ None Fabricated ------------ Nothing Repaired ---------- Nothing Studied --------- None Alien Tech Used ----------------- None Achievements -------------- Well Done Challenges ------------ None Game ------ Seed ContainmentExpertMask Manual? 0 Play Time 00:11:59 Cumulative 37.7 hours Start 2026.09.01 @ 21:49:47 End 2026.09.01 @ 22:02:06 Sessions 1 Manual Loads 0 Difficulty Rogue Special Mode None Game No. 77 Rogue 62 Adventurer 0 Explorer 15 Win Type - Total 0 Types 0/0/0/0/0/0/0/0/0/0 Lore% 11 Gallery% 24 Achievement% 14 Wizard Run 0 Options --------- Layout 0 ASCII 0 Keyboard 0 Movement Vi Keybinds 0 Fullscreen 2 Font 24/Terminus Map View 76x50 Zoom Use 0% Tactical HUD 1 Map Filters NONE Filters NONE Steam 1 RUN: fe1a040b-6ef4-4d8a-a4c7-82118ab34717